[Event "Titled Tuesday Blitz June 22 2021"]
[White "Milchev, Nikolay"]
[Black "Lagarde, Maxime"]
[WhiteFideId "2906090"]
[BlackFideId "662399"]
[WhiteElo "2449"]
[BlackElo "2630"]
[Result "0-1"]
[Round "05"]
[TimeControl "180+1"]
[Date "2021.06.22"]
[WhiteClock "0:00:20"]
[BlackClock "0:00:10"]

1. Nf3 {[%clk 0:03:00]}  Nc6 {[%clk 0:03:00]} 2. d4 {[%clk 0:02:56]}  d6 {[%clk 0:02:59]} 3. c4 {[%clk 0:02:56]}  e5 {[%clk 0:02:59]} 4. Nc3 {[%clk 0:02:52]}  Nf6 {[%clk 0:02:58]} 5. dxe5 {[%clk 0:02:49]}  Nxe5 {[%clk 0:02:59]} 6. Nxe5 {[%clk 0:02:49]}  dxe5 {[%clk 0:03:00]} 7. Qxd8+ {[%clk 0:02:49]}  Kxd8 {[%clk 0:03:01]} 8. e3 {[%clk 0:02:48]}  c6 {[%clk 0:03:01]} 9. Bd2 {[%clk 0:02:48]}  Kc7 {[%clk 0:03:01]} 10. h3 {[%clk 0:02:49]}  h5 {[%clk 0:03:00]} 11. O-O-O {[%clk 0:02:49]}  Bf5 {[%clk 0:03:00]} 12. Be2 {[%clk 0:02:45]}  h4 {[%clk 0:03:00]} 13. Bf3 {[%clk 0:02:43]}  Nd7 {[%clk 0:02:54]} 14. Bg4 {[%clk 0:02:35]}  Bg6 {[%clk 0:02:49]} 15. Bxd7 {[%clk 0:02:35]}  Kxd7 {[%clk 0:02:50]} 16. e4 {[%clk 0:02:35]}  Kc7 {[%clk 0:02:45]} 17. Be3 {[%clk 0:02:34]}  Bb4 {[%clk 0:02:43]} 18. f3 {[%clk 0:02:34]}  Rad8 {[%clk 0:02:42]} 19. Kc2 {[%clk 0:02:33]}  b6 {[%clk 0:02:38]} 20. Rxd8 {[%clk 0:02:32]}  Rxd8 {[%clk 0:02:36]} 21. Bg5 {[%clk 0:02:16]}  Rh8 {[%clk 0:02:33]} 22. Rd1 {[%clk 0:02:13]}  f6 {[%clk 0:02:31]} 23. Be3 {[%clk 0:02:13]}  Bf7 {[%clk 0:02:31]} 24. b3 {[%clk 0:02:12]}  g5 {[%clk 0:02:29]} 25. Na4 {[%clk 0:01:54]}  Be7 {[%clk 0:02:25]} 26. c5 {[%clk 0:01:46]}  b5 {[%clk 0:02:24]} 27. Nb2 {[%clk 0:01:46]}  Be6 {[%clk 0:02:18]} 28. a3 {[%clk 0:01:44]}  Rb8 {[%clk 0:02:12]} 29. Kc3 {[%clk 0:01:43]}  a5 {[%clk 0:02:05]} 30. Nd3 {[%clk 0:01:43]}  Kc8 {[%clk 0:01:56]} 31. b4 {[%clk 0:01:42]}  Ra8 {[%clk 0:01:54]} 32. bxa5 {[%clk 0:01:36]}  Rxa5 {[%clk 0:01:55]} 33. Kb2 {[%clk 0:01:35]}  Kc7 {[%clk 0:01:46]} 34. Nb4 {[%clk 0:01:35]}  Ra8 {[%clk 0:01:45]} 35. Rd3 {[%clk 0:01:30]}  Bc4 {[%clk 0:01:43]} 36. Rd2 {[%clk 0:01:31]}  Be6 {[%clk 0:01:38]} 37. Rd1 {[%clk 0:01:24]}  Kb7 {[%clk 0:01:37]} 38. Rd2 {[%clk 0:01:20]}  Rf8 {[%clk 0:01:36]} 39. Nd5 {[%clk 0:01:08]}  cxd5 {[%clk 0:01:24]} 40. exd5 {[%clk 0:01:09]}  Bf5 {[%clk 0:01:23]} 41. Kc3 {[%clk 0:01:03]}  Ra8 {[%clk 0:01:19]} 42. Kb4 {[%clk 0:01:03]}  Ra4+ {[%clk 0:01:06]} 43. Kxb5 {[%clk 0:01:02]}  Rxa3 {[%clk 0:01:07]} 44. c6+ {[%clk 0:01:03]}  Kc8 {[%clk 0:01:05]} 45. Bc5 {[%clk 0:00:49]}  Bxc5 {[%clk 0:00:21]} 46. Kxc5 {[%clk 0:00:50]}  Kc7 {[%clk 0:00:22]} 47. d6+ {[%clk 0:00:50]}  Kd8 {[%clk 0:00:22]} 48. Rb2 {[%clk 0:00:48]}  Ra5+ {[%clk 0:00:16]} 49. Kb6 {[%clk 0:00:36]}  Rd5 {[%clk 0:00:16]} 50. d7 {[%clk 0:00:34]}  Bxd7 {[%clk 0:00:15]} 51. cxd7 {[%clk 0:00:32]}  Kxd7 {[%clk 0:00:16]} 52. Ra2 {[%clk 0:00:30]}  Ke6 {[%clk 0:00:16]} 53. Kc6 {[%clk 0:00:30]}  Rd1 {[%clk 0:00:16]} 54. Kc5 {[%clk 0:00:30]}  Kf5 {[%clk 0:00:15]} 55. Kc4 {[%clk 0:00:28]}  Kf4 {[%clk 0:00:15]} 56. Ra6 {[%clk 0:00:27]}  f5 {[%clk 0:00:15]} 57. Ra2 {[%clk 0:00:27]}  e4 {[%clk 0:00:15]} 58. fxe4 {[%clk 0:00:27]}  fxe4 {[%clk 0:00:16]} 59. Rf2+ {[%clk 0:00:27]}  Kg3 {[%clk 0:00:12]} 60. Re2 {[%clk 0:00:27]}  Rg1 {[%clk 0:00:08]} 61. Rxe4 {[%clk 0:00:27]}  Rxg2 {[%clk 0:00:09]} 62. Re3+ {[%clk 0:00:22]}  Kh2 {[%clk 0:00:09]} 63. Kd4 {[%clk 0:00:21]}  Rg3 {[%clk 0:00:09]} 64. Re2+ {[%clk 0:00:21]}  Kxh3 {[%clk 0:00:09]} 65. Ke4 {[%clk 0:00:21]}  Kg4 {[%clk 0:00:09]} 66. Rf2 {[%clk 0:00:20]}  h3 {[%clk 0:00:10]} 67. Rf8 {[%clk 0:00:19]}  Rg1 {[%clk 0:00:09]} 68. Rh8 {[%clk 0:00:20]}  Re1+ {[%clk 0:00:09]} 69. Kd3 {[%clk 0:00:20]}  Kg3 {[%clk 0:00:10]} 70. Kd2 {[%clk 0:00:20]}  Re7 {[%clk 0:00:10]} 71. Rxh3+ {[%clk 0:00:20]}  Kxh3 {[%clk 0:00:10]} 0-1


[Site "https://www.chess.com"]

[Event "Titled Tuesday Blitz June 22 2021"]
[White "Moroni, Luca Jr"]
[Black "Ogloblin, Nikolay"]
[WhiteFideId "865834"]
[BlackFideId "4139658"]
[WhiteElo "2491"]
[BlackElo "2296"]
[Result "1-0"]
[Round "05"]
[TimeControl "180+1"]
[Date "2021.06.22"]
[WhiteClock "0:00:20"]
[BlackClock "0:00:30"]

1. d4 {[%clk 0:03:00]}  Nf6 {[%clk 0:02:58]} 2. c4 {[%clk 0:03:00]}  e6 {[%clk 0:02:58]} 3. Nc3 {[%clk 0:02:59]}  Bb4 {[%clk 0:02:58]} 4. Nf3 {[%clk 0:02:59]}  b6 {[%clk 0:02:58]} 5. Qb3 {[%clk 0:02:54]}  a5 {[%clk 0:02:56]} 6. g3 {[%clk 0:02:49]}  Bb7 {[%clk 0:02:54]} 7. Bg2 {[%clk 0:02:49]}  O-O {[%clk 0:02:50]} 8. O-O {[%clk 0:02:48]}  d5 {[%clk 0:02:33]} 9. cxd5 {[%clk 0:02:37]}  Nxd5 {[%clk 0:02:32]} 10. Nxd5 {[%clk 0:02:34]}  Bxd5 {[%clk 0:02:32]} 11. Qc2 {[%clk 0:02:34]}  Na6 {[%clk 0:02:26]} 12. Bf4 {[%clk 0:02:00]}  Bd6 {[%clk 0:02:24]} 13. Bxd6 {[%clk 0:01:46]}  Qxd6 {[%clk 0:02:18]} 14. a3 {[%clk 0:01:38]}  c5 {[%clk 0:02:06]} 15. Rad1 {[%clk 0:01:37]}  Rac8 {[%clk 0:02:05]} 16. Qb1 {[%clk 0:01:35]}  f5 {[%clk 0:01:56]} 17. dxc5 {[%clk 0:01:26]}  Qxc5 {[%clk 0:01:51]} 18. Rc1 {[%clk 0:01:22]}  Qe7 {[%clk 0:01:46]} 19. Rxc8 {[%clk 0:01:21]}  Rxc8 {[%clk 0:01:45]} 20. Rc1 {[%clk 0:01:22]}  Rxc1+ {[%clk 0:01:44]} 21. Qxc1 {[%clk 0:01:23]}  Qc5 {[%clk 0:01:43]} 22. Qg5 {[%clk 0:01:18]}  h6 {[%clk 0:01:37]} 23. Qg6 {[%clk 0:01:07]}  Qe7 {[%clk 0:01:30]} 24. Ne5 {[%clk 0:01:01]}  Bxg2 {[%clk 0:01:30]} 25. Kxg2 {[%clk 0:01:02]}  Nc5 {[%clk 0:01:30]} 26. f3 {[%clk 0:01:00]}  a4 {[%clk 0:01:28]} 27. g4 {[%clk 0:00:54]}  fxg4 {[%clk 0:01:26]} 28. Nxg4 {[%clk 0:00:55]}  Kh8 {[%clk 0:01:25]} 29. Ne5 {[%clk 0:00:44]}  Kg8 {[%clk 0:01:23]} 30. Kf1 {[%clk 0:00:36]}  Qf6 {[%clk 0:01:20]} 31. Qxf6 {[%clk 0:00:32]}  gxf6 {[%clk 0:01:20]} 32. Nc4 {[%clk 0:00:33]}  Nd7 {[%clk 0:01:15]} 33. Ke1 {[%clk 0:00:32]}  Kf7 {[%clk 0:01:14]} 34. Kd2 {[%clk 0:00:32]}  e5 {[%clk 0:01:14]} 35. Kc3 {[%clk 0:00:31]}  Ke6 {[%clk 0:01:13]} 36. Kb4 {[%clk 0:00:32]}  Kd5 {[%clk 0:01:13]} 37. Ne3+ {[%clk 0:00:31]}  Ke6 {[%clk 0:01:07]} 38. Kxa4 {[%clk 0:00:31]}  f5 {[%clk 0:01:07]} 39. Kb5 {[%clk 0:00:31]}  e4 {[%clk 0:01:01]} 40. Nc4 {[%clk 0:00:25]}  exf3 {[%clk 0:00:53]} 41. exf3 {[%clk 0:00:26]}  f4 {[%clk 0:00:50]} 42. a4 {[%clk 0:00:26]}  h5 {[%clk 0:00:41]} 43. b4 {[%clk 0:00:24]}  h4 {[%clk 0:00:38]} 44. h3 {[%clk 0:00:24]}  Kf5 {[%clk 0:00:37]} 45. Kc6 {[%clk 0:00:22]}  Nf8 {[%clk 0:00:34]} 46. Nxb6 {[%clk 0:00:22]}  Ne6 {[%clk 0:00:34]} 47. Nd5 {[%clk 0:00:20]}  Nd4+ {[%clk 0:00:34]} 48. Kc5 {[%clk 0:00:20]}  Nxf3 {[%clk 0:00:35]} 49. a5 {[%clk 0:00:21]}  Ne5 {[%clk 0:00:35]} 50. a6 {[%clk 0:00:21]}  f3 {[%clk 0:00:35]} 51. a7 {[%clk 0:00:21]}  f2 {[%clk 0:00:34]} 52. a8=Q {[%clk 0:00:20]}  Nd3+ {[%clk 0:00:30]} 53. Kd4 {[%clk 0:00:20]} 1-0


[Site "https://www.chess.com"]

[Event "Titled Tuesday Blitz June 22 2021"]
[White "Mortazavi, Ali"]
[Black "Mikhailovsky, Vladimir"]
[WhiteFideId "401323"]
[BlackFideId "34105414"]
[WhiteElo "2339"]
[BlackElo "2314"]
[Result "1-0"]
[Round "05"]
[TimeControl "180+1"]
[Date "2021.06.22"]
[WhiteClock "0:00:14"]
[BlackClock "0:00:01"]

1. Nf3 {[%clk 0:03:00]}  g6 {[%clk 0:02:58]} 2. e4 {[%clk 0:03:00]}  Bg7 {[%clk 0:02:58]} 3. d4 {[%clk 0:03:00]}  d6 {[%clk 0:02:58]} 4. Nc3 {[%clk 0:03:00]}  a6 {[%clk 0:02:58]} 5. Be3 {[%clk 0:02:56]}  b5 {[%clk 0:02:57]} 6. a4 {[%clk 0:02:56]}  b4 {[%clk 0:02:50]} 7. Ne2 {[%clk 0:02:56]}  Bb7 {[%clk 0:02:48]} 8. Ng3 {[%clk 0:02:56]}  Nd7 {[%clk 0:02:43]} 9. Bd3 {[%clk 0:02:52]}  c5 {[%clk 0:02:43]} 10. c3 {[%clk 0:02:51]}  bxc3 {[%clk 0:02:33]} 11. bxc3 {[%clk 0:02:51]}  Ngf6 {[%clk 0:02:32]} 12. O-O {[%clk 0:02:45]}  O-O {[%clk 0:02:14]} 13. h3 {[%clk 0:02:45]}  c4 {[%clk 0:02:05]} 14. Bc2 {[%clk 0:02:45]}  Qc7 {[%clk 0:02:05]} 15. Qd2 {[%clk 0:02:42]}  Rfb8 {[%clk 0:01:57]} 16. Bh6 {[%clk 0:02:41]}  Nf8 {[%clk 0:01:24]} 17. Nh4 {[%clk 0:02:25]}  e6 {[%clk 0:01:08]} 18. Bxg7 {[%clk 0:02:25]}  Kxg7 {[%clk 0:01:07]} 19. f4 {[%clk 0:02:25]}  Qe7 {[%clk 0:00:59]} 20. f5 {[%clk 0:02:16]}  Nxe4 {[%clk 0:00:36]} 21. Nxe4 {[%clk 0:01:32]}  Qxh4 {[%clk 0:00:36]} 22. Rf4 {[%clk 0:01:32]}  Qh6 {[%clk 0:00:17]} 23. fxe6 {[%clk 0:01:32]}  f5 {[%clk 0:00:10]} 24. d5 {[%clk 0:01:10]}  Bxd5 {[%clk 0:00:05]} 25. Qd4+ {[%clk 0:01:07]}  Kg8 {[%clk 0:00:05]} 26. Nf6+ {[%clk 0:01:07]}  Kh8 {[%clk 0:00:05]} 27. Nxd5+ {[%clk 0:01:04]}  Qg7 {[%clk 0:00:05]} 28. Qxg7+ {[%clk 0:00:41]}  Kxg7 {[%clk 0:00:06]} 29. Rxc4 {[%clk 0:00:39]}  Nxe6 {[%clk 0:00:06]} 30. Re1 {[%clk 0:00:37]}  Nc5 {[%clk 0:00:05]} 31. Re7+ {[%clk 0:00:28]}  Kg8 {[%clk 0:00:03]} 32. Nf6+ {[%clk 0:00:18]}  Kf8 {[%clk 0:00:03]} 33. Rxh7 {[%clk 0:00:18]}  Rb2 {[%clk 0:00:01]} 34. Bd1 {[%clk 0:00:14]}  Rb1 {[%clk 0:00:01]} 35. Rd4 {[%clk 0:00:14]} 1-0


[Site "https://www.chess.com"]

[Event "Titled Tuesday Blitz June 22 2021"]
[White "Najdin, Danil"]
[Black "Karthikeyan, Murali"]
[WhiteFideId "4172426"]
[BlackFideId "5074452"]
[WhiteElo "2193"]
[BlackElo "2564"]
[Result "0-1"]
[Round "05"]
[TimeControl "180+1"]
[Date "2021.06.22"]
[WhiteClock "0:00:06"]
[BlackClock "0:00:21"]

1. e4 {[%clk 0:03:00]}  c5 {[%clk 0:02:59]} 2. Nf3 {[%clk 0:03:00]}  Nc6 {[%clk 0:02:59]} 3. d4 {[%clk 0:03:00]}  cxd4 {[%clk 0:03:00]} 4. Nxd4 {[%clk 0:03:01]}  Nf6 {[%clk 0:03:00]} 5. Nc3 {[%clk 0:03:00]}  e6 {[%clk 0:03:00]} 6. Be3 {[%clk 0:02:52]}  Bb4 {[%clk 0:02:59]} 7. f3 {[%clk 0:02:45]}  d5 {[%clk 0:02:57]} 8. Bb5 {[%clk 0:02:41]}  Bd7 {[%clk 0:02:28]} 9. Bxc6 {[%clk 0:02:41]}  Bxc6 {[%clk 0:02:27]} 10. e5 {[%clk 0:02:41]}  Nd7 {[%clk 0:02:27]} 11. f4 {[%clk 0:02:32]}  Nb6 {[%clk 0:02:25]} 12. O-O {[%clk 0:02:28]}  Nc4 {[%clk 0:02:25]} 13. Qc1 {[%clk 0:02:14]}  O-O {[%clk 0:02:17]} 14. Nce2 {[%clk 0:02:13]}  Rc8 {[%clk 0:02:15]} 15. c3 {[%clk 0:02:11]}  Bc5 {[%clk 0:02:11]} 16. b3 {[%clk 0:02:10]}  Nxe3 {[%clk 0:02:10]} 17. Qxe3 {[%clk 0:02:10]}  Bb5 {[%clk 0:02:10]} 18. Rfc1 {[%clk 0:02:01]}  Bxe2 {[%clk 0:01:58]} 19. Qxe2 {[%clk 0:02:01]}  Qb6 {[%clk 0:01:58]} 20. Qd2 {[%clk 0:01:55]}  a5 {[%clk 0:01:37]} 21. Kh1 {[%clk 0:01:53]}  Rc7 {[%clk 0:01:36]} 22. Nf3 {[%clk 0:01:49]}  Rfc8 {[%clk 0:01:36]} 23. Qd3 {[%clk 0:01:41]}  Be3 {[%clk 0:01:33]} 24. Ng5 {[%clk 0:01:32]}  g6 {[%clk 0:01:33]} 25. Rc2 {[%clk 0:01:24]}  Bxf4 {[%clk 0:01:31]} 26. Nf3 {[%clk 0:01:25]}  Qe3 {[%clk 0:01:31]} 27. Rd1 {[%clk 0:01:24]}  Rxc3 {[%clk 0:01:27]} 28. Rxc3 {[%clk 0:01:20]}  Rxc3 {[%clk 0:01:28]} 29. Qb5 {[%clk 0:01:17]}  Rc1 {[%clk 0:01:18]} 30. Rf1 {[%clk 0:01:02]}  Kg7 {[%clk 0:01:10]} 31. h3 {[%clk 0:00:32]}  Bxe5 {[%clk 0:01:03]} 32. Nxe5 {[%clk 0:00:30]}  Rxf1+ {[%clk 0:01:03]} 33. Qxf1 {[%clk 0:00:31]}  Qxe5 {[%clk 0:01:03]} 34. Qb5 {[%clk 0:00:30]}  Qa1+ {[%clk 0:00:55]} 35. Kh2 {[%clk 0:00:30]}  Qxa2 {[%clk 0:00:54]} 36. Qxb7 {[%clk 0:00:29]}  Qb2 {[%clk 0:00:54]} 37. Qb5 {[%clk 0:00:26]}  Qe5+ {[%clk 0:00:53]} 38. Kh1 {[%clk 0:00:25]}  Qe1+ {[%clk 0:00:48]} 39. Kh2 {[%clk 0:00:26]}  Qb4 {[%clk 0:00:41]} 40. Qd3 {[%clk 0:00:22]}  Qf4+ {[%clk 0:00:41]} 41. Kh1 {[%clk 0:00:22]}  d4 {[%clk 0:00:40]} 42. Qb5 {[%clk 0:00:19]}  Qc1+ {[%clk 0:00:32]} 43. Kh2 {[%clk 0:00:19]}  Qc7+ {[%clk 0:00:32]} 44. Kh1 {[%clk 0:00:19]}  e5 {[%clk 0:00:33]} 45. Qd5 {[%clk 0:00:18]}  Qc1+ {[%clk 0:00:29]} 46. Kh2 {[%clk 0:00:18]}  Qe1 {[%clk 0:00:27]} 47. Qd6 {[%clk 0:00:08]}  Qe3 {[%clk 0:00:24]} 48. Qd5 {[%clk 0:00:06]}  d3 {[%clk 0:00:24]} 49. Qxa5 {[%clk 0:00:06]}  d2 {[%clk 0:00:21]} 0-1


[Site "https://www.chess.com"]

[Event "Titled Tuesday Blitz June 22 2021"]
[White "Narayanan, Srinath"]
[Black "Zverev, Lev"]
[WhiteFideId "5018420"]
[BlackFideId "24250775"]
[WhiteElo "2472"]
[BlackElo "2109"]
[Result "1-0"]
[Round "05"]
[TimeControl "180+1"]
[Date "2021.06.22"]
[WhiteClock "0:00:06"]
[BlackClock "0:00:01"]

1. Nf3 {[%clk 0:03:00]}  Nf6 {[%clk 0:02:59]} 2. c4 {[%clk 0:02:59]}  e6 {[%clk 0:02:59]} 3. b3 {[%clk 0:03:00]}  d5 {[%clk 0:02:59]} 4. Bb2 {[%clk 0:03:00]}  Be7 {[%clk 0:02:58]} 5. g3 {[%clk 0:02:57]}  O-O {[%clk 0:02:57]} 6. Bg2 {[%clk 0:02:57]}  c5 {[%clk 0:02:55]} 7. O-O {[%clk 0:02:57]}  d4 {[%clk 0:02:54]} 8. e3 {[%clk 0:02:57]}  Nc6 {[%clk 0:02:53]} 9. exd4 {[%clk 0:02:57]}  cxd4 {[%clk 0:02:54]} 10. Re1 {[%clk 0:02:58]}  Re8 {[%clk 0:02:52]} 11. Ne5 {[%clk 0:02:56]}  Nxe5 {[%clk 0:02:50]} 12. Rxe5 {[%clk 0:02:57]}  Nd7 {[%clk 0:02:48]} 13. Re1 {[%clk 0:02:55]}  e5 {[%clk 0:02:47]} 14. d3 {[%clk 0:02:55]}  Bb4 {[%clk 0:02:35]} 15. Nd2 {[%clk 0:02:55]}  Nc5 {[%clk 0:02:33]} 16. Qc2 {[%clk 0:02:53]}  Bf5 {[%clk 0:02:23]} 17. Bf1 {[%clk 0:02:52]}  e4 {[%clk 0:02:17]} 18. dxe4 {[%clk 0:02:49]}  Nxe4 {[%clk 0:02:09]} 19. Rxe4 {[%clk 0:02:44]}  Bxe4 {[%clk 0:01:58]} 20. Nxe4 {[%clk 0:02:45]}  Rc8 {[%clk 0:01:42]} 21. Bd3 {[%clk 0:02:40]}  f5 {[%clk 0:01:33]} 22. Nd2 {[%clk 0:02:40]}  g6 {[%clk 0:01:31]} 23. Nf3 {[%clk 0:02:39]}  Bc3 {[%clk 0:01:23]} 24. c5 {[%clk 0:02:30]}  Rxc5 {[%clk 0:01:18]} 25. Bc4+ {[%clk 0:02:31]}  Kg7 {[%clk 0:01:16]} 26. Bxc3 {[%clk 0:02:31]}  dxc3 {[%clk 0:01:17]} 27. Qxc3+ {[%clk 0:02:32]}  Qf6 {[%clk 0:01:14]} 28. Qxf6+ {[%clk 0:02:21]}  Kxf6 {[%clk 0:01:15]} 29. a4 {[%clk 0:02:20]}  a6 {[%clk 0:01:13]} 30. Rd1 {[%clk 0:02:15]}  b5 {[%clk 0:01:12]} 31. axb5 {[%clk 0:02:16]}  axb5 {[%clk 0:01:13]} 32. Bf1 {[%clk 0:02:16]}  Rc3 {[%clk 0:00:57]} 33. Nd4 {[%clk 0:01:58]}  b4 {[%clk 0:00:49]} 34. Ra1 {[%clk 0:01:53]}  Rd8 {[%clk 0:00:48]} 35. Ra6+ {[%clk 0:01:53]}  Kf7 {[%clk 0:00:47]} 36. Nb5 {[%clk 0:01:47]}  Rc1 {[%clk 0:00:42]} 37. Kg2 {[%clk 0:01:48]}  Rd2 {[%clk 0:00:36]} 38. Nd6+ {[%clk 0:01:37]}  Kg7 {[%clk 0:00:35]} 39. Nc4 {[%clk 0:01:32]}  Rdd1 {[%clk 0:00:35]} 40. Ne3 {[%clk 0:01:27]}  Rd2 {[%clk 0:00:35]} 41. Bc4 {[%clk 0:01:23]}  Rc3 {[%clk 0:00:32]} 42. Ra7+ {[%clk 0:01:23]}  Kh6 {[%clk 0:00:31]} 43. h4 {[%clk 0:01:15]}  Rxe3 {[%clk 0:00:31]} 44. Bg8 {[%clk 0:01:15]}  g5 {[%clk 0:00:31]} 45. Rxh7+ {[%clk 0:01:12]}  Kg6 {[%clk 0:00:31]} 46. h5+ {[%clk 0:01:13]}  Kf6 {[%clk 0:00:30]} 47. Rf7+ {[%clk 0:01:13]}  Ke6 {[%clk 0:00:30]} 48. Rf8+ {[%clk 0:01:10]}  Ke7 {[%clk 0:00:29]} 49. Rxf5 {[%clk 0:01:11]}  Re1 {[%clk 0:00:14]} 50. h6 {[%clk 0:01:09]}  Rdd1 {[%clk 0:00:14]} 51. Rxg5 {[%clk 0:00:25]}  Rg1+ {[%clk 0:00:12]} 52. Kf3 {[%clk 0:00:25]}  Rh1 {[%clk 0:00:13]} 53. h7 {[%clk 0:00:25]}  Kf6 {[%clk 0:00:14]} 54. Rb5 {[%clk 0:00:24]}  Rd4 {[%clk 0:00:10]} 55. Ke3 {[%clk 0:00:22]}  Rg4 {[%clk 0:00:10]} 56. Rb6+ {[%clk 0:00:21]}  Kg7 {[%clk 0:00:10]} 57. Rb7+ {[%clk 0:00:20]}  Kh8 {[%clk 0:00:09]} 58. Rb8 {[%clk 0:00:20]}  Kg7 {[%clk 0:00:09]} 59. Rd8 {[%clk 0:00:19]}  Rg6 {[%clk 0:00:06]} 60. Rd4 {[%clk 0:00:18]}  Rb6 {[%clk 0:00:07]} 61. Rg4+ {[%clk 0:00:18]}  Kh8 {[%clk 0:00:07]} 62. Kf3 {[%clk 0:00:17]}  Rf6+ {[%clk 0:00:06]} 63. Rf4 {[%clk 0:00:14]}  Rg6 {[%clk 0:00:05]} 64. Rxb4 {[%clk 0:00:13]}  Rf6+ {[%clk 0:00:04]} 65. Kg2 {[%clk 0:00:13]}  Rh5 {[%clk 0:00:03]} 66. Rb8 {[%clk 0:00:13]}  Kg7 {[%clk 0:00:02]} 67. b4 {[%clk 0:00:14]}  Rhf5 {[%clk 0:00:02]} 68. f4 {[%clk 0:00:09]}  Rd6 {[%clk 0:00:02]} 69. h8=Q+ {[%clk 0:00:05]}  Kxh8 {[%clk 0:00:01]} 70. Be6+ {[%clk 0:00:06]}  Rf8 {[%clk 0:00:02]} 71. Rxf8+ {[%clk 0:00:06]}  Kg7 {[%clk 0:00:03]} 72. Rg8+ {[%clk 0:00:06]}  Kh7 {[%clk 0:00:01]} 73. Re8 {[%clk 0:00:06]} 1-0


[Site "https://www.chess.com"]

[Event "Titled Tuesday Blitz June 22 2021"]
[White "Nguyen, Ngoc Truong Son"]
[Black "Rojas Alarcon, Julian Antonio"]
[WhiteFideId "12401110"]
[BlackFideId "5107407"]
[WhiteElo "2596"]
[BlackElo "2333"]
[Result "1/2-1/2"]
[Round "05"]
[TimeControl "180+1"]
[Date "2021.06.22"]
[WhiteClock "0:00:06"]
[BlackClock "0:01:08"]

1. e4 {[%clk 0:03:00]}  c5 {[%clk 0:02:58]} 2. Nf3 {[%clk 0:03:00]}  d6 {[%clk 0:02:58]} 3. d4 {[%clk 0:03:00]}  cxd4 {[%clk 0:02:59]} 4. Nxd4 {[%clk 0:03:01]}  Nf6 {[%clk 0:03:00]} 5. Nc3 {[%clk 0:03:01]}  g6 {[%clk 0:03:00]} 6. Be3 {[%clk 0:02:56]}  Bg7 {[%clk 0:03:01]} 7. Bc4 {[%clk 0:02:56]}  Nc6 {[%clk 0:03:02]} 8. f3 {[%clk 0:02:15]}  Bd7 {[%clk 0:02:59]} 9. Qd2 {[%clk 0:02:12]}  O-O {[%clk 0:02:58]} 10. Bb3 {[%clk 0:02:10]}  Qa5 {[%clk 0:02:57]} 11. h4 {[%clk 0:02:05]}  Ne5 {[%clk 0:02:54]} 12. h5 {[%clk 0:02:01]}  Nxh5 {[%clk 0:02:49]} 13. Bh6 {[%clk 0:01:41]}  Bxh6 {[%clk 0:02:42]} 14. Qxh6 {[%clk 0:01:42]}  Rfc8 {[%clk 0:02:43]} 15. O-O-O {[%clk 0:01:11]}  Rxc3 {[%clk 0:02:39]} 16. bxc3 {[%clk 0:01:12]}  Qxc3 {[%clk 0:02:39]} 17. Kb1 {[%clk 0:01:10]}  Nc4 {[%clk 0:02:30]} 18. Bxc4 {[%clk 0:01:06]}  Qxc4 {[%clk 0:02:31]} 19. Rxh5 {[%clk 0:00:38]}  gxh5 {[%clk 0:02:28]} 20. Qg5+ {[%clk 0:00:39]}  Kf8 {[%clk 0:02:23]} 21. Qh6+ {[%clk 0:00:39]}  Kg8 {[%clk 0:02:23]} 22. Qg5+ {[%clk 0:00:37]}  Kf8 {[%clk 0:02:22]} 23. Qxh5 {[%clk 0:00:36]}  Rc8 {[%clk 0:01:54]} 24. Qxh7 {[%clk 0:00:18]}  e5 {[%clk 0:01:48]} 25. Qh6+ {[%clk 0:00:16]}  Ke7 {[%clk 0:01:49]} 26. Qg5+ {[%clk 0:00:16]}  f6 {[%clk 0:01:40]} 27. Qg7+ {[%clk 0:00:16]}  Qf7 {[%clk 0:01:41]} 28. Qxf7+ {[%clk 0:00:15]}  Kxf7 {[%clk 0:01:41]} 29. Ne2 {[%clk 0:00:11]}  Ke7 {[%clk 0:01:39]} 30. Rh1 {[%clk 0:00:10]}  Rf8 {[%clk 0:01:36]} 31. g4 {[%clk 0:00:10]}  Bc6 {[%clk 0:01:34]} 32. Ng3 {[%clk 0:00:10]}  Bd7 {[%clk 0:01:30]} 33. Kc1 {[%clk 0:00:09]}  Be6 {[%clk 0:01:31]} 34. a3 {[%clk 0:00:10]}  d5 {[%clk 0:01:27]} 35. Kd2 {[%clk 0:00:10]}  dxe4 {[%clk 0:01:27]} 36. Nxe4 {[%clk 0:00:10]}  f5 {[%clk 0:01:23]} 37. gxf5 {[%clk 0:00:10]}  Bxf5 {[%clk 0:01:24]} 38. Ke3 {[%clk 0:00:10]}  Rc8 {[%clk 0:01:21]} 39. Rh5 {[%clk 0:00:09]}  Bxe4 {[%clk 0:01:19]} 40. Kxe4 {[%clk 0:00:10]}  Rxc2 {[%clk 0:01:18]} 41. Rh7+ {[%clk 0:00:08]}  Kd6 {[%clk 0:01:17]} 42. Rxb7 {[%clk 0:00:08]}  Rc4+ {[%clk 0:01:11]} 43. Ke3 {[%clk 0:00:07]}  Ra4 {[%clk 0:01:10]} 44. Rb3 {[%clk 0:00:07]}  Kd5 {[%clk 0:01:10]} 45. Rd3+ {[%clk 0:00:05]}  Ke6 {[%clk 0:01:10]} 46. Rc3 {[%clk 0:00:05]}  Kd5 {[%clk 0:01:09]} 47. Rd3+ {[%clk 0:00:06]}  Ke6 {[%clk 0:01:10]} 48. Rc3 {[%clk 0:00:06]}  Kd5 {[%clk 0:01:08]} 49. Rd3+ {[%clk 0:00:06]} 1/2-1/2


[Site "https://www.chess.com"]

[Event "Titled Tuesday Blitz June 22 2021"]
[White "Novik, Maxim"]
[Black "Svane, Frederik"]
[WhiteFideId "4102924"]
[BlackFideId "12923044"]
[WhiteElo "2406"]
[BlackElo "2459"]
[Result "1/2-1/2"]
[Round "05"]
[TimeControl "180+1"]
[Date "2021.06.22"]
[WhiteClock "0:01:29"]
[BlackClock "0:01:46"]

1. c4 {[%clk 0:02:42]}  e6 {[%clk 0:02:55]} 2. g3 {[%clk 0:02:41]}  d5 {[%clk 0:02:55]} 3. Nf3 {[%clk 0:02:41]}  Nf6 {[%clk 0:02:55]} 4. Bg2 {[%clk 0:02:41]}  Be7 {[%clk 0:02:35]} 5. O-O {[%clk 0:02:40]}  O-O {[%clk 0:02:35]} 6. b3 {[%clk 0:02:40]}  b6 {[%clk 0:02:32]} 7. Bb2 {[%clk 0:02:37]}  Bb7 {[%clk 0:02:32]} 8. e3 {[%clk 0:02:37]}  c5 {[%clk 0:02:31]} 9. Nc3 {[%clk 0:02:37]}  Nc6 {[%clk 0:02:32]} 10. cxd5 {[%clk 0:02:36]}  Nxd5 {[%clk 0:02:32]} 11. Nxd5 {[%clk 0:02:36]}  Qxd5 {[%clk 0:02:28]} 12. Ne5 {[%clk 0:02:29]}  Qd6 {[%clk 0:02:27]} 13. d4 {[%clk 0:02:28]}  cxd4 {[%clk 0:02:24]} 14. Nxc6 {[%clk 0:02:18]}  Bxc6 {[%clk 0:02:24]} 15. Qxd4 {[%clk 0:02:08]}  Qxd4 {[%clk 0:02:22]} 16. Bxd4 {[%clk 0:02:08]}  Bxg2 {[%clk 0:02:23]} 17. Kxg2 {[%clk 0:02:08]}  Rfc8 {[%clk 0:02:23]} 18. Rac1 {[%clk 0:02:06]}  f6 {[%clk 0:02:19]} 19. Bb2 {[%clk 0:02:03]}  Kf7 {[%clk 0:02:19]} 20. Rxc8 {[%clk 0:02:01]}  Rxc8 {[%clk 0:02:19]} 21. Rc1 {[%clk 0:02:02]}  Rxc1 {[%clk 0:02:14]} 22. Bxc1 {[%clk 0:02:02]}  f5 {[%clk 0:02:13]} 23. f3 {[%clk 0:02:01]}  e5 {[%clk 0:02:04]} 24. e4 {[%clk 0:02:01]}  g6 {[%clk 0:02:00]} 25. Be3 {[%clk 0:01:55]}  Ke6 {[%clk 0:02:00]} 26. Kf2 {[%clk 0:01:53]}  Bd8 {[%clk 0:01:58]} 27. Ke2 {[%clk 0:01:53]}  a6 {[%clk 0:01:58]} 28. a4 {[%clk 0:01:46]}  b5 {[%clk 0:01:57]} 29. Kd3 {[%clk 0:01:42]}  Ba5 {[%clk 0:01:54]} 30. g4 {[%clk 0:01:37]}  fxg4 {[%clk 0:01:53]} 31. fxg4 {[%clk 0:01:36]}  Kd6 {[%clk 0:01:52]} 32. Ba7 {[%clk 0:01:32]}  Ke6 {[%clk 0:01:50]} 33. h3 {[%clk 0:01:32]}  Kd6 {[%clk 0:01:49]} 34. Be3 {[%clk 0:01:30]}  Ke6 {[%clk 0:01:49]} 35. Bc5 {[%clk 0:01:29]}  Kd7 {[%clk 0:01:46]} 1/2-1/2


[Site "https://www.chess.com"]